[Event "Goteborg Open 2018"]
[Site "Molnlycke kulturhus, Biblioteksgatan 2, Molnlycke, Sweden"]
[Date "2018.08.19"]
[Round "8.7"]
[White "Rasti, Arvin"]
[Black "Bengtsson, Jessica"]
[Result "1/2-1/2"]
[TimeControl "15 minutes + 5 seconds per move from move one (Round 1 - 4) / 90 minutes + 30 seconds per move from move one (Round 5 - 8)"]
[WhiteFideId "1741160"]
[BlackFideId "1711083"]
[WhiteElo "2091"]
[BlackElo "1978"]

1. d4 {[%clk 01:30:57]} {[%emt 00:00:02]} d5 {[%clk 01:30:43]} {[%emt
00:00:18]} 2. Bf4 {[%clk 01:31:19]} {[%emt 00:00:07]} c5 {[%clk 01:30:14]}
{[%emt 00:01:00]} 3. e3 {[%clk 01:31:32]} {[%emt 00:00:17]} Nc6 {[%clk
01:29:59]} {[%emt 00:00:45]} 4. Nf3 {[%clk 01:31:42]} {[%emt 00:00:20]} Nf6
{[%clk 01:29:44]} {[%emt 00:00:45]} 5. Nbd2 {[%clk 01:32:01]} {[%emt 00:00:11]}
cxd4 {[%clk 01:28:07]} {[%emt 00:02:07]} 6. exd4 {[%clk 01:32:18]} {[%emt
00:00:13]} Qb6 {[%clk 01:22:16]} {[%emt 00:06:21]} 7. Nb3 {[%clk 01:26:59]}
{[%emt 00:05:50]} Bg4 {[%clk 01:14:06]} {[%emt 00:08:40]} 8. Bd3 {[%clk
01:22:37]} {[%emt 00:04:51]} Nb4 {[%clk 01:10:22]} {[%emt 00:04:13]} 9. O-O
{[%clk 01:22:18]} {[%emt 00:00:49]} Nxd3 {[%clk 01:10:21]} {[%emt 00:00:31]} 10.
Qxd3 {[%clk 01:21:05]} {[%emt 00:01:42]} e6 {[%clk 01:09:54]} {[%emt 00:00:58]}
11. a4 {[%clk 01:09:31]} {[%emt 00:12:04]} Bf5 {[%clk 01:02:29]} {[%emt
00:07:55]} 12. Qe2 {[%clk 01:09:18]} {[%emt 00:00:43]} Be7 {[%clk 00:49:11]}
{[%emt 00:13:48]} 13. Ne5 {[%clk 01:04:48]} {[%emt 00:05:00]} a6 {[%clk
00:42:12]} {[%emt 00:07:30]} 14. a5 {[%clk 01:01:36]} {[%emt 00:03:42]} Qb4
{[%clk 00:37:25]} {[%emt 00:05:13]} 15. Rfc1 {[%clk 00:55:43]} {[%emt
00:06:26]} Rc8 {[%clk 00:36:28]} {[%emt 00:01:26]} 16. Bd2 {[%clk 00:52:56]}
{[%emt 00:03:18]} Qb5 {[%clk 00:29:01]} {[%emt 00:07:57]} 17. Qxb5+ {[%clk
00:52:52]} {[%emt 00:00:34]} axb5 {[%clk 00:29:29]} {[%emt 00:00:02]} 18. Nd3
{[%clk 00:52:50]} {[%emt 00:00:32]} Ne4 {[%clk 00:28:01]} {[%emt 00:01:57]} 19.
Bb4 {[%clk 00:47:51]} {[%emt 00:05:29]} Bxb4 {[%clk 00:26:43]} {[%emt
00:01:48]} 20. Nxb4 {[%clk 00:47:08]} {[%emt 00:01:13]} Ra8 {[%clk 00:22:57]}
{[%emt 00:04:14]} 21. f3 {[%clk 00:45:25]} {[%emt 00:02:15]} Nd6 {[%clk
00:23:24]} {[%emt 00:00:03]} 22. Nc5 {[%clk 00:44:38]} {[%emt 00:01:17]} Ke7
{[%clk 00:22:45]} {[%emt 00:01:09]} 23. Re1 {[%clk 00:44:00]} {[%emt 00:01:08]}
Kd8 {[%clk 00:21:50]} {[%emt 00:01:24]} 24. b3 {[%clk 00:43:53]} {[%emt
00:00:39]} Kc7 {[%clk 00:20:09]} {[%emt 00:02:09]} 25. Ra2 {[%clk 00:42:54]}
{[%emt 00:01:30]} Ra7 {[%clk 00:16:57]} {[%emt 00:03:40]} 26. Rea1 {[%clk
00:35:44]} {[%emt 00:07:43]} Rha8 {[%clk 00:17:08]} {[%emt 00:00:19]} 27. Ncd3
{[%clk 00:26:47]} {[%emt 00:09:28]} Bxd3 {[%clk 00:15:52]} {[%emt 00:01:46]} 28.
Nxd3 {[%clk 00:26:00]} {[%emt 00:01:16]} Nf5 {[%clk 00:15:16]} {[%emt
00:01:06]} 29. c3 {[%clk 00:26:30]} Ne7 {[%clk 00:14:00]} {[%emt 00:01:46]} 30.
Nb4 {[%clk 00:24:23]} {[%emt 00:02:36]} Nc6 {[%clk 00:13:58]} {[%emt 00:00:32]}
31. Nxc6 {[%clk 00:24:33]} {[%emt 00:00:21]} Kxc6 {[%clk 00:14:13]} {[%emt
00:00:15]} 32. b4 {[%clk 00:24:40]} {[%emt 00:00:23]} Kd6 {[%clk 00:13:57]}
{[%emt 00:00:45]} 33. Kf2 {[%clk 00:24:36]} {[%emt 00:00:34]} Ra6 {[%clk
00:14:07]} {[%emt 00:00:21]} 34. Ke3 {[%clk 00:24:37]} {[%emt 00:00:29]} Rc8
{[%clk 00:13:09]} {[%emt 00:01:28]} 35. Kd3 {[%clk 00:24:33]} {[%emt 00:00:34]}
Rac6 {[%clk 00:12:56]} {[%emt 00:00:43]} 36. Ra3 {[%clk 00:24:19]} {[%emt
00:00:44]} Kd7 {[%clk 00:13:01]} {[%emt 00:00:25]} 37. h4 {[%clk 00:23:21]}
{[%emt 00:01:27]} Ke7 {[%clk 00:11:29]} {[%emt 00:02:02]} 38. g4 {[%clk
00:22:50]} {[%emt 00:01:01]} Kf6 {[%clk 00:11:06]} {[%emt 00:00:53]} 39. f4
{[%clk 00:22:23]} {[%emt 00:00:57]} g6 {[%clk 00:10:42]} {[%emt 00:00:54]} 40.
Re1 {[%clk 00:22:03]} {[%emt 00:00:49]} Rg8 {[%clk 00:09:39]} {[%emt 00:01:33]}
41. Re5 {[%clk 00:21:01]} {[%emt 00:01:32]} h6 {[%clk 00:05:52]} {[%emt
00:04:17]} 42. Ra2 {[%clk 00:20:41]} {[%emt 00:00:51]} Rgc8 {[%clk 00:05:34]}
{[%emt 00:00:47]} 43. Ra3 {[%clk 00:19:19]} {[%emt 00:01:52]} Rg8 {[%clk
00:05:43]} {[%emt 00:00:21]} 44. Kd2 {[%clk 00:18:34]} {[%emt 00:01:15]} Ke7
{[%clk 00:04:31]} {[%emt 00:01:42]} 45. Ke2 {[%clk 00:17:15]} {[%emt 00:01:49]}
f6 {[%clk 00:04:43]} {[%emt 00:00:18]} 46. Re3 {[%clk 00:17:44]} f5 {[%clk
00:03:46]} {[%emt 00:01:27]} 47. Kf3 {[%clk 00:16:37]} {[%emt 00:01:37]} fxg4+
{[%clk 00:03:19]} {[%emt 00:00:57]} 48. Kxg4 {[%clk 00:16:54]} {[%emt
00:00:13]} Kf6 {[%clk 00:03:37]} {[%emt 00:00:11]} 49. Ra2 {[%clk 00:16:26]}
{[%emt 00:00:57]} h5+ {[%clk 00:03:22]} {[%emt 00:00:46]} 50. Kf3 {[%clk
00:16:18]} {[%emt 00:00:37]} Rgc8 {[%clk 00:03:37]} {[%emt 00:00:16]} 51. Rc2
{[%clk 00:13:47]} {[%emt 00:03:01]} Rc4 {[%clk 00:04:00]} {[%emt 00:00:07]} 52.
Kg3 {[%clk 00:10:58]} {[%emt 00:03:20]} Rxd4 {[%clk 00:03:29]} {[%emt
00:01:00]} 53. Rce2 {[%clk 00:06:01]} {[%emt 00:05:27]} Re4 {[%clk 00:03:54]}
{[%emt 00:00:05]} 54. Rxe4 {[%clk 00:06:26]} {[%emt 00:00:06]} dxe4 {[%clk
00:04:21]} {[%emt 00:00:02]} 55. Rxe4 {[%clk 00:06:50]} {[%emt 00:00:06]} Rxc3+
{[%clk 00:04:49]} {[%emt 00:00:03]} 56. Kf2 {[%clk 00:07:16]} {[%emt 00:00:04]}
Rd3 {[%clk 00:03:36]} {[%emt 00:01:42]} 57. Ke2 {[%clk 00:04:40]} {[%emt
00:03:06]} Rd5 {[%clk 00:03:30]} {[%emt 00:00:36]} 58. Kf3 {[%clk 00:03:51]}
{[%emt 00:01:19]} Kf5 {[%clk 00:03:10]} {[%emt 00:00:50]} 59. Re3 {[%clk
00:04:07]} {[%emt 00:00:13]} e5 {[%clk 00:01:43]} {[%emt 00:01:57]} 60. fxe5
{[%clk 00:04:30]} {[%emt 00:00:07]} Rxe5 {[%clk 00:02:13]} 61. Rc3 {[%clk
00:04:52]} {[%emt 00:00:08]} Kf6 {[%clk 00:00:57]} {[%emt 00:01:45]} 62. Rc7
{[%clk 00:04:42]} {[%emt 00:00:41]} Re7 {[%clk 00:01:04]} {[%emt 00:00:23]} 63.
Rc5 {[%clk 00:04:40]} {[%emt 00:00:32]} Re5 {[%clk 00:01:19]} {[%emt 00:00:14]}
64. Kf4 {[%clk 00:02:14]} {[%emt 00:02:56]} Rf5+ {[%clk 00:01:08]} {[%emt
00:00:41]} 65. Ke4 {[%clk 00:02:34]} {[%emt 00:00:09]} Ke6 {[%clk 00:00:48]}
{[%emt 00:00:51]} 66. Rc7 {[%clk 00:01:32]} {[%emt 00:01:32]} Re5+ {[%clk
00:00:48]} {[%emt 00:00:30]} 67. Kd4 {[%clk 00:01:23]} {[%emt 00:00:39]} Rd5+
{[%clk 00:00:46]} {[%emt 00:00:32]} 68. Ke4 {[%clk 00:01:22]} {[%emt 00:00:31]}
Re5+ {[%clk 00:00:46]} {[%emt 00:00:30]} 69. Kd4 {[%clk 00:01:38]} {[%emt
00:00:14]} Rd5+ {[%clk 00:00:39]} {[%emt 00:00:37]} 70. Ke4 {[%clk 00:01:19]}
{[%emt 00:00:49]} Re5+ {[%clk 00:00:39]} 1/2-1/2

[Event "Goteborg Open 2018"]
[Site "Molnlycke kulturhus, Biblioteksgatan 2, Molnlycke, Sweden"]
[Date "2018.08.19"]
[Round "8.8"]
[White "Johansson, Roy"]
[Black "Kardell, Mathias"]
[Result "0-1"]
[TimeControl "15 minutes + 5 seconds per move from move one (Round 1 - 4) / 90 minutes + 30 seconds per move from move one (Round 5 - 8)"]
[WhiteFideId "1745972"]
[BlackFideId "1710109"]
[WhiteElo "1889"]
[BlackElo "2084"]

1. d4 {[%clk 01:30:55]} {[%emt 00:00:04]} d5 {[%clk 01:30:52]} {[%emt
00:00:09]} 2. Bf4 {[%clk 01:31:19]} {[%emt 00:00:06]} c6 {[%clk 01:31:01]}
{[%emt 00:00:20]} 3. e3 {[%clk 01:31:18]} {[%emt 00:00:32]} Bf5 {[%clk
01:30:35]} {[%emt 00:00:56]} 4. c4 {[%clk 01:31:19]} {[%emt 00:00:29]} e6
{[%clk 01:30:10]} {[%emt 00:00:54]} 5. Qb3 {[%clk 01:31:25]} {[%emt 00:00:23]}
Qb6 {[%clk 01:28:28]} {[%emt 00:02:12]} 6. c5 {[%clk 01:31:45]} {[%emt
00:00:11]} Qxb3 {[%clk 01:27:16]} {[%emt 00:01:42]} 7. axb3 {[%clk 01:32:04]}
{[%emt 00:00:10]} Nd7 {[%clk 01:24:05]} {[%emt 00:03:41]} 8. b4 {[%clk
01:31:44]} {[%emt 00:00:50]} Bxb1 {[%clk 01:20:57]} {[%emt 00:03:38]} 9. Rxb1
{[%clk 01:32:05]} {[%emt 00:00:10]} a6 {[%clk 01:13:16]} {[%emt 00:08:12]} 10.
Nf3 {[%clk 01:31:22]} {[%emt 00:01:12]} Ngf6 {[%clk 01:10:55]} {[%emt
00:02:51]} 11. h3 {[%clk 01:31:24]} {[%emt 00:00:29]} g6 {[%clk 01:03:08]}
{[%emt 00:08:16]} 12. Bd3 {[%clk 01:30:23]} {[%emt 00:01:30]} Bg7 {[%clk
01:01:55]} {[%emt 00:01:43]} 13. Nd2 {[%clk 01:29:47]} {[%emt 00:01:07]} O-O
{[%clk 00:58:23]} {[%emt 00:04:02]} 14. Nb3 {[%clk 01:29:29]} {[%emt 00:00:48]}
Rfe8 {[%clk 00:54:33]} {[%emt 00:04:20]} 15. O-O {[%clk 01:29:18]} {[%emt
00:00:41]} e5 {[%clk 00:52:23]} {[%emt 00:02:40]} 16. Bh2 {[%clk 01:29:26]}
{[%emt 00:00:22]} exd4 {[%clk 00:51:18]} {[%emt 00:01:35]} 17. exd4 {[%clk
01:29:34]} {[%emt 00:00:22]} Ne4 {[%clk 00:49:06]} {[%emt 00:02:42]} 18. Rfe1
{[%clk 01:27:31]} {[%emt 00:02:32]} f5 {[%clk 00:43:06]} {[%emt 00:06:31]} 19.
Rbd1 {[%clk 01:23:53]} {[%emt 00:04:07]} Kf7 {[%clk 00:36:47]} {[%emt
00:06:50]} 20. Bf1 {[%clk 01:22:59]} {[%emt 00:01:24]} Nf8 {[%clk 00:26:03]}
{[%emt 00:11:14]} 21. Na5 {[%clk 01:20:35]} {[%emt 00:02:54]} Ne6 {[%clk
00:24:22]} {[%emt 00:02:12]} 22. f3 {[%clk 01:17:08]} {[%emt 00:03:57]} Bxd4+
{[%clk 00:21:21]} {[%emt 00:03:30]} 23. Rxd4 {[%clk 01:17:28]} {[%emt
00:00:10]} Nxd4 {[%clk 00:21:45]} {[%emt 00:00:06]} 24. fxe4 {[%clk 01:17:49]}
{[%emt 00:00:10]} Rxe4 {[%clk 00:21:38]} {[%emt 00:00:37]} 25. Rxe4 {[%clk
01:17:27]} {[%emt 00:00:52]} fxe4 {[%clk 00:21:51]} {[%emt 00:00:16]} 26. Nxb7
{[%clk 01:17:34]} {[%emt 00:00:23]} e3 {[%clk 00:20:53]} {[%emt 00:01:28]} 27.
Bd3 {[%clk 01:16:44]} {[%emt 00:01:20]} Ke6 {[%clk 00:20:14]} {[%emt 00:01:07]}
28. Kf1 {[%clk 01:15:13]} {[%emt 00:02:02]} Rf8+ {[%clk 00:19:45]} {[%emt
00:00:58]} 29. Ke1 {[%clk 01:15:34]} {[%emt 00:00:10]} Rf2 {[%clk 00:11:25]}
{[%emt 00:08:50]} 30. Bg1 {[%clk 01:13:25]} {[%emt 00:02:40]} Rd2 {[%clk
00:09:59]} {[%emt 00:01:56]} 31. Bb1 {[%clk 01:08:03]} {[%emt 00:05:52]} Rxb2
{[%clk 00:09:20]} {[%emt 00:01:09]} 32. Bd3 {[%clk 01:08:06]} {[%emt 00:00:27]}
Rb3 {[%clk 00:07:51]} {[%emt 00:01:58]} 33. Bxe3 {[%clk 01:07:52]} {[%emt
00:00:45]} Rxd3 {[%clk 00:08:02]} {[%emt 00:00:19]} 34. Bd2 {[%clk 01:07:05]}
{[%emt 00:01:17]} Rb3 {[%clk 00:05:53]} {[%emt 00:02:39]} 35. Kf2 {[%clk
01:05:32]} {[%emt 00:02:03]} Rb2 {[%clk 00:05:36]} {[%emt 00:00:47]} 36. Ke3
{[%clk 01:05:29]} {[%emt 00:00:33]} Nc2+ {[%clk 00:05:14]} {[%emt 00:00:51]} 37.
Kf4 {[%clk 01:05:14]} {[%emt 00:00:45]} Nxb4 {[%clk 00:05:06]} {[%emt
00:00:39]} 38. Bc3 {[%clk 01:05:28]} {[%emt 00:00:16]} Nd3+ {[%clk 00:05:07]}
{[%emt 00:00:28]} 0-1

[Event "Goteborg Open 2018"]
[Site "Molnlycke kulturhus, Biblioteksgatan 2, Molnlycke, Sweden"]
[Date "2018.08.19"]
[Round "8.9"]
[White "Strom-Engdahl, Alexander"]
[Black "Olsson, William"]
[Result "1/2-1/2"]
[TimeControl "15 minutes + 5 seconds per move from move one (Round 1 - 4) / 90 minutes + 30 seconds per move from move one (Round 5 - 8)"]
[WhiteFideId "1741586"]
[BlackFideId "1741721"]
[WhiteElo "1747"]
[BlackElo "1931"]

1. c4 {[%clk 01:30:46]} {[%emt 00:00:13]} c5 {[%clk 01:30:34]} {[%emt
00:00:27]} 2. g3 {[%clk 01:31:07]} {[%emt 00:00:08]} g6 {[%clk 01:30:44]}
{[%emt 00:00:21]} 3. Nc3 {[%clk 01:31:16]} {[%emt 00:00:20]} Bg7 {[%clk
01:31:11]} {[%emt 00:00:03]} 4. Bg2 {[%clk 01:31:25]} {[%emt 00:00:21]} Nc6
{[%clk 01:31:38]} {[%emt 00:00:04]} 5. d3 {[%clk 01:31:15]} {[%emt 00:00:40]}
e5 {[%clk 01:31:32]} {[%emt 00:00:35]} 6. e3 {[%clk 01:30:28]} {[%emt
00:01:16]} Nge7 {[%clk 01:31:20]} {[%emt 00:00:43]} 7. Nge2 {[%clk 01:30:36]}
{[%emt 00:00:21]} O-O {[%clk 01:31:18]} {[%emt 00:00:34]} 8. O-O {[%clk
01:30:29]} {[%emt 00:00:36]} f5 {[%clk 01:31:42]} {[%emt 00:00:06]} 9. Nd5
{[%clk 01:28:49]} {[%emt 00:02:09]} d6 {[%clk 01:30:28]} {[%emt 00:01:44]} 10.
Rb1 {[%clk 01:27:30]} {[%emt 00:01:49]} a5 {[%clk 01:28:53]} {[%emt 00:02:07]}
11. a3 {[%clk 01:26:34]} {[%emt 00:01:26]} Be6 {[%clk 01:29:13]} {[%emt
00:00:10]} 12. Bd2 {[%clk 01:25:53]} {[%emt 00:01:10]} Rb8 {[%clk 01:28:10]}
{[%emt 00:01:34]} 13. Nec3 {[%clk 01:24:41]} {[%emt 00:01:42]} b6 {[%clk
01:13:41]} {[%emt 00:15:00]} 14. b4 {[%clk 01:21:21]} {[%emt 00:03:50]} axb4
{[%clk 01:11:52]} {[%emt 00:02:19]} 15. axb4 {[%clk 01:21:04]} {[%emt
00:00:46]} cxb4 {[%clk 01:11:51]} {[%emt 00:00:31]} 16. Nxb4 {[%clk 01:21:24]}
{[%emt 00:00:10]} Nxb4 {[%clk 01:12:18]} {[%emt 00:00:03]} 17. Rxb4 {[%clk
01:21:35]} {[%emt 00:00:20]} d5 {[%clk 01:12:44]} {[%emt 00:00:05]} 18. cxd5
{[%clk 01:21:02]} {[%emt 00:01:02]} Nxd5 {[%clk 01:13:00]} {[%emt 00:00:14]} 19.
Nxd5 {[%clk 01:19:49]} {[%emt 00:01:43]} Bxd5 {[%clk 01:13:24]} {[%emt
00:00:06]} 20. e4 {[%clk 01:19:50]} {[%emt 00:00:28]} Be6 {[%clk 01:13:36]}
{[%emt 00:00:20]} 21. Qe2 {[%clk 01:17:52]} {[%emt 00:02:24]} Qd6 {[%clk
01:10:39]} {[%emt 00:03:29]} 22. Rfb1 {[%clk 01:17:34]} {[%emt 00:00:49]} Rfd8
{[%clk 01:10:35]} {[%emt 00:00:35]} 23. Be3 {[%clk 01:17:22]} {[%emt 00:00:42]}
Qxd3 {[%clk 01:09:49]} {[%emt 00:01:16]} 24. Qxd3 {[%clk 01:17:10]} {[%emt
00:00:42]} Rxd3 {[%clk 01:10:04]} {[%emt 00:00:15]} 25. Rxb6 {[%clk 01:17:19]}
{[%emt 00:00:22]} Rxb6 {[%clk 01:10:23]} {[%emt 00:00:11]} 26. Bxb6 {[%clk
01:17:42]} {[%emt 00:00:06]} Kf7 {[%clk 01:08:56]} {[%emt 00:01:55]} 27. Be3
{[%clk 01:16:41]} {[%emt 00:01:30]} Bf8 {[%clk 01:07:38]} {[%emt 00:01:48]} 28.
Rb7+ {[%clk 01:16:39]} {[%emt 00:00:34]} Rd7 {[%clk 01:07:58]} {[%emt
00:00:11]} 29. Rxd7+ {[%clk 01:16:02]} {[%emt 00:01:07]} Bxd7 {[%clk 01:08:19]}
{[%emt 00:00:09]} 30. f4 {[%clk 01:15:29]} {[%emt 00:01:03]} Bh6 {[%clk
01:08:19]} {[%emt 00:00:27]} 31. Kf2 {[%clk 01:14:26]} {[%emt 00:01:36]} Ke6
{[%clk 01:05:46]} {[%emt 00:03:04]} 32. exf5+ {[%clk 01:14:30]} {[%emt
00:00:26]} gxf5 {[%clk 01:05:54]} {[%emt 00:00:23]} 33. fxe5 {[%clk 01:14:54]}
{[%emt 00:00:06]} Bxe3+ {[%clk 01:05:47]} {[%emt 00:00:36]} 34. Kxe3 {[%clk
01:15:23]} {[%emt 00:00:01]} Kxe5 {[%clk 01:06:01]} {[%emt 00:00:17]} 35. Bf3
{[%clk 01:15:22]} {[%emt 00:00:29]} Bb5 {[%clk 01:06:20]} {[%emt 00:00:12]} 36.
Bg2 {[%clk 01:15:35]} {[%emt 00:00:18]} Bc4 {[%clk 01:06:11]} {[%emt 00:00:39]}
37. Bf3 {[%clk 01:15:54]} {[%emt 00:00:11]} Bf1 {[%clk 01:06:31]} {[%emt
00:00:09]} 38. Bd1 {[%clk 01:15:55]} {[%emt 00:00:28]} Bg2 {[%clk 01:06:32]}
{[%emt 00:00:31]} 39. Be2 {[%clk 01:16:10]} {[%emt 00:00:15]} Bh3 {[%clk
01:06:53]} {[%emt 00:00:09]} 40. Bd1 {[%clk 01:16:28]} {[%emt 00:00:13]} Bg4
{[%clk 01:06:58]} {[%emt 00:00:24]} 41. Bc2 {[%clk 01:16:46]} {[%emt 00:00:12]}
Bh5 {[%clk 01:06:03]} {[%emt 00:01:24]} 42. Bb3 {[%emt 00:00:38]} 1/2-1/2

[Event "Goteborg Open 2018"]
[Site "Molnlycke kulturhus, Biblioteksgatan 2, Molnlycke, Sweden"]
[Date "2018.08.19"]
[Round "8.10"]
[White "Westerlund, Ola"]
[Black "Wellevit, Tomas"]
[Result "1-0"]
[TimeControl "15 minutes + 5 seconds per move from move one (Round 1 - 4) / 90 minutes + 30 seconds per move from move one (Round 5 - 8)"]
[WhiteFideId "1712101"]
[BlackFideId "1731963"]
[WhiteElo "1923"]
[BlackElo "1905"]

1. d4 {[%clk 01:30:58]} {[%emt 00:00:01]} d5 {[%clk 01:30:59]} {[%emt
00:00:01]} 2. c4 {[%clk 01:31:22]} {[%emt 00:00:06]} e5 {[%clk 01:31:28]} 3.
dxe5 {[%emt 00:00:07]} d4 {[%emt 00:00:01]} 4. Nf3 {[%clk 01:32:01]} {[%emt
00:00:13]} Nc6 {[%clk 01:32:27]} {[%emt 00:00:01]} 5. Nbd2 {[%clk 01:26:57]}
{[%emt 00:05:34]} Bg4 {[%clk 01:32:32]} {[%emt 00:00:25]} 6. h3 {[%clk
01:25:59]} {[%emt 00:01:28]} Bh5 {[%clk 01:31:30]} {[%emt 00:01:32]} 7. a3
{[%clk 01:25:09]} {[%emt 00:01:21]} Qe7 {[%clk 01:29:42]} {[%emt 00:02:17]} 8.
b4 {[%clk 01:04:07]} {[%emt 00:21:32]} O-O-O {[%clk 01:28:08]} {[%emt
00:02:03]} 9. Bb2 {[%clk 01:03:23]} {[%emt 00:01:14]} Nxe5 {[%clk 01:25:13]}
{[%emt 00:03:26]} 10. Nxe5 {[%clk 01:03:42]} {[%emt 00:00:11]} Qxe5 {[%clk
01:25:42]} {[%emt 00:00:02]} 11. Qa4 {[%clk 00:58:16]} {[%emt 00:05:55]} Kb8
{[%clk 01:26:00]} {[%emt 00:00:11]} 12. g4 {[%clk 00:42:16]} {[%emt 00:16:30]}
Bg6 {[%clk 01:26:17]} {[%emt 00:00:13]} 13. Bg2 {[%clk 00:42:12]} {[%emt
00:00:34]} Bd3 {[%clk 01:24:03]} {[%emt 00:02:44]} 14. O-O {[%clk 00:29:55]}
{[%emt 00:12:48]} Bg6 {[%clk 01:15:07]} {[%emt 00:09:26]} 15. Nf3 {[%clk
00:23:40]} {[%emt 00:06:45]} Qf4 {[%clk 01:14:02]} {[%emt 00:01:33]} 16. Bxd4
{[%clk 00:23:49]} {[%emt 00:00:22]} b6 {[%clk 01:10:21]} {[%emt 00:04:12]} 17.
Be5 {[%clk 00:14:40]} {[%emt 00:09:38]} Qe4 {[%clk 01:09:35]} {[%emt 00:01:16]}
18. Nd4 {[%clk 00:14:16]} {[%emt 00:00:54]} 1-0